fUST/lending_fUST_20240320
["ID","MTS","AMOUNT","RATE_DAILY","PERIOD"]
[319570316,1710871844575,-155.72444341,0.00051235,4]
[319570318,1710871844585,-640.63383888,0.00051235,2]
[319570320,1710871844594,-8564.19232098,0.00051236,120]
[319570425,1710871846087,-0.60968678,0.00034046,3]
[319571451,1710872010296,-154.86062544,0.00032999,4]
[319571452,1710872010318,-554.015,0.00033,7]
[319571453,1710872010340,-832.12437456,0.00033706,120]
[319571457,1710872079445,-6941.43908897,0.00033369,2]
[319571458,1710872079467,-154.86062544,0.00033704,4]
[319571459,1710872079487,-4231.2918955,0.00033704,4]
[319571460,1710872079507,-922.57134108,0.00033705,4]
[319571461,1710872079527,-731.81708724,0.00033706,120]
[319571462,1710872079662,-283.52744632,0.00033706,3]
[319571463,1710872079688,-16333.49251545,0.00033706,4]
[319571464,1710872745165,-1443.46425967,0.00031052,2]
[319571465,1710872825100,-641.15569708,0.00031047,4]
[319571466,1710872825123,-317.72891615,0.00031048,4]
[319571467,1710872825144,-1046.83881358,0.00031049,4]
[319571468,1710872825164,-1177.40322805,0.00031049,4]
[319571469,1710872825186,-211.58599706,0.00031049,4]
[319571470,1710872825206,-400.0,0.0003105,2]
[319571471,1710872825227,-205.28734808,0.00031051,4]
[319571472,1710872825254,-400.07329264,0.00031051,4]
[319571473,1710872923878,-196.5087785,0.00030509,2]
[319571474,1710872923899,-5000.0,0.00030738,2]
[319571475,1710872923920,-1972.50369495,0.00031051,4]
[319571476,1710872923942,-52830.98752655,0.00031051,4]
[319571477,1710872947126,-1201.76006831,0.0003074,2]
[319571478,1710872947157,-8154.87079303,0.00031051,4]
[319571479,1710872947190,-999.60015994,0.00031051,2]
[319571480,1710872947222,-327.92,0.00031051,3]
[319571481,1710872947249,-283.52744632,0.00031051,3]
[319571482,1710872947277,-168.0,0.00031052,2]
[319571483,1710872947306,-14404.68500223,0.00031052,2]
[319571484,1710872947335,-19879.58474885,0.00031052,4]
[319571485,1710872947362,-719.16931755,0.00031606,2]
[319571486,1710872947388,-3405.33653319,0.00031639,2]
[319571487,1710872947415,-11666.30561656,0.00031968,2]
[319571488,1710872948302,-2747.44273452,0.00031968,2]
[319571489,1710872948329,-200.0,0.00032,30]
[319571490,1710872948357,-185.972733,0.00032395,2]
[319571491,1710872948384,-24900.0,0.00032419,2]
[319571492,1710872948411,-347.633598,0.00032481,2]
[319571493,1710872948439,-166.666666,0.00032877,2]
[319571494,1710872948467,-5762.85325174,0.00033369,2]
[319571495,1710872948495,-166.666666,0.00033646,2]
[319571496,1710872948523,-1200.0,0.00034,30]
[319571497,1710872948552,-168.0,0.00034052,2]
[319571498,1710872948573,-166.666666,0.00034415,2]
[319571499,1710872948596,-166.666666,0.00035185,2]
[319571500,1710872948782,-1874.810585,0.00035616,120]
[319571501,1710872948804,-625.59921235,0.00035936,2]
[319571502,1710872948824,-166.666666,0.00035954,2]
[319571503,1710872948845,-719.16931755,0.00036606,2]
[319571504,1710872948864,-166.666666,0.00036723,2]
[319571505,1710872948884,-168.0,0.00037052,2]
[319571506,1710872948904,-154.86062544,0.0004,4]
[319571507,1710872948923,-190.55774934,0.0004,4]
[319571508,1710872948943,-202.0,0.0004,2]
[319571509,1710872948964,-1874.810585,0.00041553,120]
[319571510,1710872948986,-719.16931755,0.00041606,2]
[319571511,1710872949008,-160.859042,0.00046501,2]
[319571512,1710872949029,-2000.0,0.00046823,30]
[319571513,1710872949050,-1874.810585,0.00047489,120]
[319571514,1710872949071,-2000.0,0.00047545,30]
[319571515,1710872949091,-732.7493681,0.00048267,4]
[319571516,1710872949112,-356.56479607,0.00048267,120]
[319571517,1710872949132,-2000.0,0.00048268,30]
[319571518,1710872949153,-3479.72691747,0.00048565,120]
[319571519,1710872949173,-347.633598,0.00048722,2]
[319571520,1710872949194,-2000.0,0.0004899,30]
[319571521,1710872949215,-3712.981381,0.00049713,30]
[319571522,1710872949235,-5926.86104209,0.0004999,2]
[319571589,1710873031923,-154.86062544,0.0004,4]
[319571591,1710873031932,-212.742922,0.00049792,2]
[319571593,1710873031942,-14073.26857262,0.0004999,2]
[319571595,1710873031952,-324.03136722,0.0004999,3]
[319571597,1710873031961,-154.86062544,0.0004999,4]
[319571599,1710873031970,-200.0,0.0005,120]
[319571601,1710873031979,-12215.25435681,0.0005,10]
[319571603,1710873031989,-154.87609912,0.0005021,4]
[319571605,1710873031999,-360.0,0.00050789,53]
[319571607,1710873032010,-180.24802341,0.00050923,14]
[319571609,1710873032020,-180.2480234,0.0005099,14]
[319571611,1710873032030,-2385.97896017,0.00051023,30]
[319571613,1710873032041,-289.78463849,0.00051023,2]
[319571615,1710873032051,-289.78463848,0.00051048,2]
[319571617,1710873032060,-180.2480234,0.00051056,14]
[319571619,1710873032071,-289.78463848,0.00051073,2]
[319571621,1710873032082,-289.78463848,0.00051098,2]
[319571623,1710873032093,-351.57848942,0.00051121,4]
[319571625,1710873032102,-302.26571009,0.00051121,4]
[319571627,1710873032111,-894.33414201,0.00051121,4]
[319571629,1710873032120,-310.20050218,0.00051121,4]
[319571631,1710873032129,-2817.09286267,0.00051121,4]
[319571633,1710873032138,-641.15569709,0.00051121,4]
[319571635,1710873032147,-39456.2693835,0.00051122,4]
[319571640,1710873032186,-24586.57861132,0.00051122,4]
[319571642,1710873032196,-2100.2317567,0.00051122,61]
[319571644,1710873032206,-276000.0,0.00051123,2]
[319571646,1710873032216,-299.37516003,0.00051123,30]
[319571648,1710873032226,-299.37516003,0.00051123,30]
[319571650,1710873032235,-299.37516003,0.00051123,30]
[319571652,1710873032245,-299.37516003,0.00051123,30]
[319571654,1710873032255,-299.37516003,0.00051123,30]
[319571655,1710873032265,-299.37516003,0.00051123,30]
[319571658,1710873032275,-299.37516003,0.00051123,30]
[319571660,1710873032285,-299.37516003,0.00051123,30]
[319571661,1710873032296,-299.37516003,0.00051123,30]
[319571664,1710873032306,-299.37516003,0.00051123,30]
[319571666,1710873032317,-299.37516003,0.00051123,30]
[319571668,1710873032327,-299.37516003,0.00051123,30]
[319571670,1710873032337,-299.37516003,0.00051123,30]
[319571671,1710873032348,-299.37516003,0.00051123,30]
[319571673,1710873032358,-299.37516003,0.00051123,30]
[319571676,1710873032368,-299.37516003,0.00051123,30]
[319571678,1710873032380,-299.37516003,0.00051123,30]
[319571680,1710873032390,-299.37516003,0.00051123,30]
[319571682,1710873032400,-299.37516003,0.00051123,30]
[319571684,1710873032413,-299.87,0.00051123,30]
[319571685,1710873032422,-698.5753734,0.00051123,30]
[319571686,1710873032432,-698.5753734,0.00051123,30]
[319571687,1710873032442,-698.5753734,0.00051123,30]
[319571688,1710873032452,-698.5753734,0.00051123,30]
[319571689,1710873032463,-698.5753734,0.00051123,30]
[319571690,1710873032473,-698.5753734,0.00051123,30]
[319571691,1710873032484,-698.5753734,0.00051123,30]
[319571692,1710873032494,-698.5753734,0.00051123,30]
[319571693,1710873032505,-698.5753734,0.00051123,30]
[319571694,1710873032516,-698.5753734,0.00051123,30]
[319571695,1710873032527,-698.5753734,0.00051123,30]
[319571696,1710873032539,-698.5753734,0.00051123,30]
[319571697,1710873032549,-698.5753734,0.00051123,30]
[319571698,1710873032559,-698.5753734,0.00051123,30]
[319571699,1710873032569,-698.5753734,0.00051123,30]
[319571700,1710873032579,-698.5753734,0.00051123,30]
[319571701,1710873032589,-698.5753734,0.00051123,30]
[319571702,1710873032599,-698.5753734,0.00051123,30]
[319571703,1710873032609,-698.5753734,0.00051123,30]
[319571704,1710873032619,-699.07,0.00051123,30]
[319571705,1710873032630,-179.9,0.00051123,30]
[319571706,1710873032640,-179.9,0.00051123,30]
[319571707,1710873032650,-179.9,0.00051123,30]
[319571708,1710873032661,-179.9,0.00051123,30]
[319571709,1710873032671,-180.39,0.00051123,30]
[319571710,1710873032682,-161.5,0.00051123,30]
[319571711,1710873032692,-161.5,0.00051123,30]
[319571712,1710873032702,-161.5,0.00051123,30]
[319571713,1710873032712,-161.5,0.00051123,30]
[319571714,1710873032722,-161.5,0.00051123,30]
[319571715,1710873032732,-161.5,0.00051123,30]
[319571716,1710873032742,-161.5,0.00051123,30]
[319571717,1710873032752,-161.5,0.00051123,30]
[319571718,1710873032763,-161.5,0.00051123,30]
[319571719,1710873032774,-161.5,0.00051123,30]
[319571720,1710873032784,-161.5,0.00051123,30]
[319571721,1710873032794,-161.5,0.00051123,30]
[319571722,1710873032803,-162.0,0.00051123,30]
[319571723,1710873032814,-289.78463848,0.00051123,2]
[319571724,1710873032824,-433.11746748,0.00051123,2]
[319571725,1710873032833,-180.2480234,0.00051123,14]
[319571726,1710873032843,-150.0,0.0005121,60]
[319571727,1710873032853,-10000.0,0.00051222,51]
[319571728,1710873032864,-663300.04936745,0.00051223,60]
[319571740,1710873033167,-17198.83603868,0.00051223,60]
[319571833,1710873038520,-514.65872356,0.00051223,60]
[319571865,1710873040044,-675.444,0.00051223,60]
[319571866,1710873040162,-43007.46738398,0.00051223,60]
[319571921,1710873043081,-1.15312086,0.00051223,60]
[319571932,1710873043178,-88616.76936883,0.00051223,60]
[319571935,1710873043193,-40556.44538367,0.00051223,60]
[319571937,1710873043205,-29867.49398816,0.00051223,60]
[319572140,1710873046115,-324.03136722,0.0004999,3]
[319572141,1710873046125,-1272.06780706,0.00051171,10]
[319572142,1710873046163,-4154.73034568,0.00051171,10]
[319572143,1710873046174,-84601.17300454,0.00051223,60]
[319572145,1710873046306,-4044.22963676,0.00051223,60]
[319572485,1710873545293,9229.71,0.00025,2]
[319572486,1710873692505,5188.19919716,0.0001998,10]
[319572487,1710873709551,687.65469491,0.00025,2]
[319572488,1710873727455,390.7886425,0.00025,2]
[319572489,1710873767933,15969.06943157,0.00025,2]
[319572490,1710873785923,15969.06943157,0.00025,2]
[319572491,1710873807933,2565.50860229,0.00025,2]
[319572492,1710873810915,285.0,0.00022,2]
[319572493,1710873834401,-239.11467736,0.00024997,2]
[319572494,1710873834423,-382.03971005,0.00024997,2]
[319572495,1710873834443,-1570.60595844,0.00024998,2]
[319572496,1710873834463,-366.55193549,0.00024998,2]
[319572497,1710873834483,-154.86062544,0.00024999,2]
[319572498,1710873834503,-597.00397515,0.00024999,2]
[319572499,1710873834524,-12288.82311807,0.00025,2]
[319572500,1710873889712,5166.41395051,0.0002178,2]
[319572501,1710873903057,-171.06575112,0.00024996,2]
[319572502,1710873903077,-1954.1833345,0.00024997,2]
[319572503,1710873903097,-596.01897216,0.00024998,2]
[319572504,1710873903116,-465.73583713,0.00024998,2]
[319572505,1710873903138,-3149.29011079,0.00024998,2]
[319572506,1710873903159,-559.15919287,0.00024998,2]
[319572507,1710873903184,-77.54680143,0.00024998,2]
[319572508,1710873954164,-539.11925568,0.00024749,2]
[319572509,1710873954185,-454.94876626,0.0002475,2]
[319572510,1710873973742,972.66341612,0.000229,2]
[319572511,1710874150138,-534.20265257,0.00024499,2]
[319572512,1710874150166,-154.86062544,0.000245,2]
[319572513,1710874150188,-534.20265257,0.00024502,2]
[319572514,1710874150210,-3016.7409433,0.0002475,2]
[319572515,1710874150231,-290.928445,0.00024999,2]
[319572516,1710874150252,-504.94239497,0.00025,2]
[319572517,1710874150271,-972.66341612,0.000279,2]
[319572518,1710874150291,-265.444952,0.0003152,2]
[319572519,1710874150317,-250.0,0.00031579,2]
[319572520,1710874150337,-383.1344487,0.00032066,2]
[319572521,1710874150360,-196.5087785,0.00032236,2]
[319572522,1710874150380,-166.666666,0.00032877,2]
[319572523,1710874150402,-972.66341612,0.000329,2]
[319572524,1710874150423,-166.666666,0.00033646,2]
[319572525,1710874150443,-166.666666,0.00034415,2]
[319572526,1710874150469,-166.666666,0.00035185,2]
[319572527,1710874150490,-590.61896266,0.00035616,120]
[319572528,1710874157175,-166.666666,0.00035594,2]
[319572529,1710874157197,-28.76929934,0.00035616,120]
[319572530,1710874157221,-166.666666,0.00035954,2]
[319572531,1710874157242,-166.666666,0.00036723,2]
[319572532,1710874157263,-154.86062544,0.00038482,4]
[319572533,1710874157284,-513.29711523,0.00038483,4]
[319572534,1710874157304,-187.19355656,0.00038484,2]
[319572535,1710874157328,-24900.0,0.00038507,2]
[319572536,1710874157349,-154.86062544,0.0004,4]
[319572537,1710874157368,-5073.37512217,0.0004,60]
[319572538,1710874157388,-619.388262,0.00041553,120]
[319572539,1710874157408,-858.59377024,0.00046709,4]
[319572540,1710874157431,-715.14140058,0.0004671,4]
[319572541,1710874157451,-915.19227971,0.00046711,4]
[319572542,1710874157472,-367.16265237,0.00046712,4]
[319572543,1710874157492,-265.444952,0.0004728,2]
[319572544,1710874157514,-619.388262,0.00047489,120]
[319572545,1710874157534,-456.31329707,0.0004866,4]
[319572546,1710874157554,-500.0,0.00049491,120]
[319572547,1710874157577,-500.0,0.00049491,120]
[319572548,1710874157598,-500.0,0.00049491,120]
[319572549,1710874157619,-500.0,0.00049491,120]
[319572550,1710874157639,-500.0,0.00049491,120]
[319572551,1710874157659,-500.0,0.00049491,120]
[319572552,1710874157680,-500.0,0.00049491,120]
[319572553,1710874157700,-500.0,0.00049491,120]
[319572554,1710874157720,-500.0,0.00049491,120]
[319572555,1710874157740,-229.48430156,0.00049491,120]
[319572556,1710874157771,-500.0,0.00049491,120]
[319572557,1710874157791,-633.48262614,0.00049491,120]
[319572558,1710874157815,-500.0,0.00049491,120]
[319572559,1710874157834,-500.0,0.00049491,120]
[319572560,1710874157856,-500.0,0.00049491,120]
[319572561,1710874157876,-500.0,0.00049491,120]
[319572562,1710874157896,-500.0,0.00049491,120]
[319572563,1710874157916,-500.0,0.00049491,120]
[319572564,1710874157936,-500.0,0.00049491,120]
[319572565,1710874157955,-390.70213506,0.00049491,120]
[319572566,1710874157974,-500.0,0.00049491,120]
[319572567,1710874157994,-500.0,0.00049491,120]
[319572568,1710874158013,-500.0,0.00049491,120]
[319572569,1710874158033,-500.0,0.00049491,120]
[319572570,1710874158054,-10316.82558333,0.00049492,61]
[319572571,1710874158076,-32455.13805466,0.00049492,30]
[319572618,1710874232145,-154.86062544,0.0004,4]
[319572620,1710874232155,-4835.76216628,0.00046242,4]
[319572622,1710874232164,-4835.76216628,0.00046243,2]
[319572624,1710874232173,-4146.2419081,0.00046346,2]
[319572625,1710874232183,-2000.0,0.0004665,30]
[319572626,1710874232193,-2000.0,0.00047281,30]
[319572628,1710874232202,-24900.0,0.0004748,2]
[319572630,1710874232212,-820.27278706,0.00047911,4]
[319572632,1710874232222,-858.59377024,0.00047911,4]
[319572633,1710874232231,-2000.0,0.00047912,30]
[319572635,1710874232240,-2000.0,0.00048543,30]
[319572637,1710874232252,-2000.0,0.00049174,30]
[319572638,1710874232262,-324.03136722,0.00049492,3]
[319572640,1710874232271,-154.86062544,0.00049492,4]
[319572642,1710874232281,-24239.70929988,0.00049492,30]
[319572645,1710874232293,-4515.91240012,0.00049492,30]
[319572647,1710874232303,-2000.0,0.00049805,30]
[319572649,1710874232312,-154.86062544,0.0004999,120]
[319572651,1710874232321,-1695.93326072,0.0005,120]
[319572653,1710874232330,-1000.0,0.0005,21]
[319572655,1710874232339,-155.0,0.00050088,4]
[319572657,1710874232349,-171.53793595,0.00050722,3]
[319572659,1710874232359,-1000.0,0.00050976,14]
[319572661,1710874232374,-154.09467331,0.0005098,120]
[319572662,1710874232383,-1000.0,0.00050991,14]
[319572664,1710874232393,-1000.0,0.00051,51]
[319572666,1710874232403,-490.12298208,0.0005101,2]
[319572669,1710874232413,-1000.0,0.00051014,2]
[319572671,1710874232422,-490.12298206,0.00051016,2]
[319572673,1710874232432,-490.12298206,0.00051021,2]
[319572674,1710874232441,-490.12298206,0.00051027,2]
[319572676,1710874232452,-173.94330656,0.0005103,4]
[319572679,1710874232462,-455.14244505,0.0005103,4]
[319572680,1710874232471,-469.50912641,0.0005103,4]
[319572682,1710874232480,-272.20266201,0.0005103,4]
[319572685,1710874232490,-875.52218253,0.00051031,4]
[319572687,1710874232501,-490.12298206,0.00051032,2]
[319572688,1710874232510,-5158.41279167,0.00051032,61]
[319572690,1710874232519,-1819.94396793,0.00051032,30]
[319572692,1710874232529,-1819.94396793,0.00051032,30]
[319572694,1710874232538,-1819.94396793,0.00051032,30]
[319572696,1710874232547,-1819.94396793,0.00051032,30]
[319572698,1710874232556,-1819.94396793,0.00051032,30]
[319572700,1710874232565,-1819.94396793,0.00051032,30]
[319572701,1710874232574,-1819.94396793,0.00051032,30]
[319572702,1710874232583,-1819.94396793,0.00051032,30]
[319572703,1710874232592,-1819.94396793,0.00051032,30]
[319572704,1710874232601,-1819.94396793,0.00051032,30]
[319572705,1710874232610,-1819.94396793,0.00051032,30]
[319572706,1710874232623,-1819.94396793,0.00051032,30]
[319572707,1710874232632,-1819.94396793,0.00051032,30]
[319572708,1710874232642,-1819.94396793,0.00051032,30]
[319572709,1710874232652,-1819.94396793,0.00051032,30]
[319572710,1710874232662,-1819.94396793,0.00051032,30]
[319572711,1710874232671,-1819.94396793,0.00051032,30]
[319572712,1710874232680,-1819.94396793,0.00051032,30]
[319572713,1710874232690,-1819.94396793,0.00051032,30]
[319572714,1710874232699,-1820.44,0.00051032,30]
[319572715,1710874232708,-4246.56925851,0.00051032,30]
[319572716,1710874232717,-1841.3067437,0.00051032,30]
[319572784,1710874238442,-644.85391162,0.00047431,120]
[319572787,1710874238454,-685.10434593,0.00047431,120]
[319573031,1710874241368,-2063.5937506,0.00047431,120]
[319573033,1710874241382,-1606.44799185,0.00047431,120]
[319573035,1710874241390,-446.72314011,0.0004791,4]
[319573037,1710874241399,-265.63357056,0.00049999,120]
[319573039,1710874241409,-277.23392603,0.00049999,120]
[319573060,1710874241607,-237.59747688,0.00049999,120]
[319573062,1710874241618,-259.94975596,0.00049999,120]
[319573243,1710874243182,-324.03136722,0.00049492,3]
[319573245,1710874243192,-173.41757267,0.00049999,120]
[319573268,1710874243405,-92.1309271,0.00049999,120]
[319573269,1710874243415,-500.0,0.00051031,120]
[319573272,1710874243425,-213.28919255,0.00051031,120]
[319573274,1710874243435,-500.0,0.00051031,120]
[319573276,1710874243445,-500.0,0.00051031,120]
[319573277,1710874243455,-462.91210134,0.00051031,120]
[319573280,1710874243466,-500.0,0.00051031,120]
[319573282,1710874243475,-500.0,0.00051031,120]
[319573284,1710874243484,-2405.26251481,0.00051032,30]
[319573286,1710874243494,-4246.56925851,0.00051032,30]
[319573288,1710874243503,-4246.56925851,0.00051032,30]
[319573289,1710874243512,-4246.56925851,0.00051032,30]
[319573292,1710874243522,-4246.56925851,0.00051032,30]
[319573294,1710874243531,-4246.56925851,0.00051032,30]
[319573296,1710874243541,-4246.56925851,0.00051032,30]
[319573297,1710874243551,-4246.56925851,0.00051032,30]
[319573299,1710874243560,-4246.56925851,0.00051032,30]
[319573301,1710874243570,-4246.56925851,0.00051032,30]
[319573303,1710874243579,-4246.56925851,0.00051032,30]
[319573305,1710874243588,-4246.56925851,0.00051032,30]
[319573307,1710874243598,-4246.56925851,0.00051032,30]
[319573310,1710874243607,-4246.56925851,0.00051032,30]
[319573312,1710874243617,-4246.56925851,0.00051032,30]
[319573325,1710874243739,-4246.56925851,0.00051032,30]
[319573327,1710874243748,-4246.56925851,0.00051032,30]
[319573329,1710874243758,-4246.56925851,0.00051032,30]
[319573331,1710874243767,-4247.06,0.00051032,30]
[319573333,1710874243776,-1000.0,0.00051072,14]
[319573335,1710874243786,-1000.0,0.00051076,14]
[319573338,1710874243795,-1000.0,0.00051077,14]
[319573339,1710874243804,-1000.0,0.00051093,14]
[319573341,1710874243814,-500.0,0.000511,30]
[319573343,1710874243823,-406.0,0.000511,4]
[319573345,1710874243832,-5379.56882152,0.0005111,4]
[319573347,1710874243842,-154.87609912,0.0005111,4]
[319573349,1710874243851,-154.93802479,0.0005111,4]
[319573351,1710874243860,-3385.29604184,0.0005111,4]
[319573353,1710874243870,-801.94079068,0.0005111,4]
[319573356,1710874243882,-435.8370627,0.0005111,2]
[319573357,1710874243892,-2109.75541981,0.0005111,4]
[319573359,1710874243906,-5026.67381528,0.0005111,4]
[319573361,1710874243916,-928.20561141,0.0005111,4]
[319573363,1710874243925,-156.67898612,0.0005111,4]
[319573365,1710874243934,-489.56210711,0.0005111,4]
[319573368,1710874243948,-239.05316785,0.0005111,4]
[319573370,1710874243958,-167.71828319,0.00051111,4]
[319573372,1710874243968,-1095.08824232,0.00051111,4]
[319573374,1710874243977,-1972.50369495,0.00051111,4]
[319573376,1710874243987,-204.98847702,0.00051112,4]
[319573378,1710874243996,-292.62904698,0.00051112,4]
[319573380,1710874244005,-10000.0,0.00051112,120]
[319573382,1710874244014,-10000.0,0.00051112,120]
[319573384,1710874244023,-10000.0,0.00051112,120]
[319573386,1710874244032,-10000.0,0.00051112,120]
[319573387,1710874244042,-10000.0,0.00051112,120]
[319573388,1710874244051,-10000.0,0.00051112,120]
[319573389,1710874244061,-10000.0,0.00051112,120]
[319573390,1710874244070,-10000.0,0.00051112,120]
[319573391,1710874244080,-10000.0,0.00051112,120]
[319573392,1710874244089,-10000.0,0.00051112,120]
[319573393,1710874244098,-10000.0,0.00051112,120]
[319573394,1710874244108,-10000.0,0.00051112,120]
[319573395,1710874244117,-10000.0,0.00051112,120]
[319573396,1710874244129,-10000.0,0.00051112,120]
[319573397,1710874244137,-10000.0,0.00051112,120]
[319573398,1710874244147,-10000.0,0.00051112,120]
[319573399,1710874244155,-10000.0,0.00051112,120]
[319573400,1710874244164,-10000.0,0.00051112,120]
[319573401,1710874244174,-10000.0,0.00051112,120]
[319573402,1710874244183,-10000.0,0.00051112,120]
[319573403,1710874244192,-8762.93074081,0.00051112,120]
[319573604,1710874246284,-236.9507932,0.0004,4]
[319573606,1710874246294,-150.80421844,0.00049492,4]
[319573608,1710874246306,-4.056407,0.00049492,4]
[319573610,1710874246315,-5000.0,0.00049499,120]
[319573612,1710874246325,-388.60423287,0.0005103,4]
[319573614,1710874246334,-247.58886056,0.0005111,4]
[319573616,1710874246343,-1237.06925919,0.00051112,120]
[319573618,1710874246353,-10000.0,0.00051112,120]
[319573620,1710874246363,-8329.81562573,0.00051112,120]
[319573634,1710874246495,-1670.18437427,0.00051112,120]
[319573636,1710874246505,-2373.72796866,0.00051112,120]
[319574181,1710874450705,155.21366968,0.000195,2]
[319574187,1710874498826,154.86062544,0.000195,2]
[319574189,1710874500799,3599.76461281,0.00019305,2]
[319574192,1710874503246,154.86062544,0.000195,2]
[319574193,1710874508045,154.86062544,0.000195,2]
[319574195,1710874515313,154.86062544,0.000195,2]
[319574198,1710874521237,154.86062544,0.000195,2]
[319574199,1710874526031,217.27038838,0.000195,2]
[319574201,1710874533817,154.86062544,0.000195,2]
[319574203,1710874543247,155.47339955,0.000195,2]
[319574267,1710875179585,1007.88245601,0.000189,2]
[319574268,1710875179883,1007.88245601,0.000239,2]
[319574271,1710875188843,2927.34926492,0.00019305,2]
[319574272,1710875188877,89.39167838,0.00019305,2]
[319574275,1710875234207,-154.86062544,0.00032876,4]
[319574276,1710875234227,-362.09279444,0.00032876,4]
[319574277,1710875234247,-641.15569708,0.00032876,4]
[319574278,1710875234267,-166.666666,0.00032877,2]
[319574279,1710875234288,-166.666666,0.00033729,2]
[319574280,1710875234308,-2173.57910032,0.00034146,2]
[319574281,1710875234328,-154.86062544,0.00034147,4]
[319574282,1710875234347,-184.18488604,0.00034147,4]
[319574283,1710875234367,-235.93981312,0.00034148,2]
[319574284,1710875250172,-154.86062544,0.00034146,4]
[319574285,1710875250198,-154.86062544,0.00034147,4]
[319574286,1710875250218,-1000.7003269,0.00034148,2]
[319574287,1710875250238,-419.87333795,0.00034248,2]
[319574288,1710875250259,-802.11666527,0.00034248,4]
[319574289,1710875250281,-1240.36053715,0.00034249,4]
[319574292,1710875348126,-1746.42164446,0.00034247,4]
[319574293,1710875348147,-544.2427357,0.00034248,4]
[319574294,1710875348167,-283.52744632,0.00034249,3]
[319574295,1710875348188,-7545.2153766,0.00034249,4]
[319574296,1710875348208,-400.0,0.00034249,3]
[319574297,1710875348228,-5137.66235442,0.00034249,4]
[319574298,1710875348249,-744.39067096,0.0003425,4]
[319574299,1710875351103,-32282.7737511,0.0003425,4]
[319574301,1710875373119,-5000.0,0.00033908,120]
[319574302,1710875373142,-202.51960448,0.00034249,3]
[319574303,1710875373164,-16128.64253123,0.0003425,4]
[319574304,1710875374258,-14961.87097727,0.0003425,4]
[319574305,1710875374281,-500.0,0.0003425,7]
[319574306,1710875374301,-500.0,0.0003425,7]
[319574307,1710875374322,-202.84155287,0.0003425,7]
[319574308,1710875374341,-500.0,0.0003425,7]
[319574309,1710875374361,-516.31921548,0.0003425,7]
[319574310,1710875374380,-500.0,0.0003425,7]
[319574311,1710875374400,-500.0,0.0003425,7]
[319574312,1710875374419,-500.0,0.0003425,7]
[319574313,1710875374439,-500.0,0.0003425,7]
[319574314,1710875374458,-264.64293732,0.0003425,7]
[319574315,1710875374477,-500.0,0.0003425,7]
[319574316,1710875374497,-500.0,0.0003425,7]
[319574317,1710875374517,-500.0,0.0003425,7]
[319574318,1710875374538,-500.0,0.0003425,7]
[319574319,1710875374557,-500.0,0.0003425,7]
[319574320,1710875374585,-500.0,0.0003425,7]
[319574321,1710875374604,-500.0,0.0003425,7]
[319574322,1710875374636,-500.0,0.0003425,7]
[319574323,1710875374659,-500.0,0.0003425,7]
[319574324,1710875374683,-500.0,0.0003425,7]
[319574325,1710875374705,-500.0,0.0003425,7]
[319574326,1710875374728,-500.0,0.0003425,7]
[319574327,1710875374749,-500.0,0.0003425,7]
[319574328,1710875374773,-500.0,0.0003425,7]
[319574329,1710875374795,-500.0,0.0003425,7]
[319574330,1710875374816,-500.0,0.0003425,7]
[319574331,1710875374840,-500.0,0.0003425,7]
[319574332,1710875374861,-500.0,0.0003425,7]
[319574333,1710875374882,-500.0,0.0003425,7]
[319574334,1710875374903,-500.0,0.0003425,7]
[319574335,1710875374923,-500.0,0.0003425,7]
[319574336,1710875374945,-201.34363529,0.0003425,7]
[319574337,1710875374965,-500.0,0.0003425,7]
[319574338,1710875374985,-500.0,0.0003425,7]
[319574339,1710875375006,-500.0,0.0003425,7]
[319574340,1710875375029,-500.0,0.0003425,7]
[319574341,1710875375050,-600.11551056,0.0003425,7]
[319574342,1710875375072,-500.0,0.0003425,7]
[319574343,1710875375093,-500.0,0.0003425,7]
[319574344,1710875375114,-500.0,0.0003425,7]
[319574345,1710875375137,-500.0,0.0003425,7]
[319574346,1710875375159,-500.0,0.0003425,7]